[Event "Titled Tuesday Blitz December 20 Early 2022"]
[White "Shankland, Sam"]
[Black "GHANDEEVAM2003"]
[WhiteFideId "2004887"]
[WhiteElo "2711"]
[BlackElo "3050"]
[Result "1/2-1/2"]
[Round "04"]
[TimeControl "180+2"]
[Date "2022.12.20"]
[WhiteClock "0:00:24"]
[BlackClock "0:00:10"]

1. d4 {[%clk 0:03:00]}  Nf6 {[%clk 0:02:59]} 2. c4 {[%clk 0:03:00]}  e6 {[%clk 0:03:00]} 3. Nc3 {[%clk 0:02:59]}  Bb4 {[%clk 0:02:59]} 4. Qc2 {[%clk 0:03:00]}  Nc6 {[%clk 0:02:56]} 5. Nf3 {[%clk 0:02:57]}  d6 {[%clk 0:02:54]} 6. Bd2 {[%clk 0:02:56]}  O-O {[%clk 0:02:53]} 7. a3 {[%clk 0:02:55]}  Bxc3 {[%clk 0:02:52]} 8. Bxc3 {[%clk 0:02:56]}  Qe7 {[%clk 0:02:52]} 9. e4 {[%clk 0:02:49]}  e5 {[%clk 0:02:49]} 10. d5 {[%clk 0:02:48]}  Nb8 {[%clk 0:02:25]} 11. Be2 {[%clk 0:02:44]}  a5 {[%clk 0:02:24]} 12. O-O {[%clk 0:02:30]}  Bg4 {[%clk 0:02:22]} 13. b4 {[%clk 0:02:26]}  Nbd7 {[%clk 0:02:17]} 14. h3 {[%clk 0:02:11]}  Bh5 {[%clk 0:01:59]} 15. Rfb1 {[%clk 0:01:57]}  Rfc8 {[%clk 0:01:57]} 16. Qd3 {[%clk 0:01:25]}  c6 {[%clk 0:01:51]} 17. Rc1 {[%clk 0:01:22]}  axb4 {[%clk 0:01:43]} 18. axb4 {[%clk 0:01:22]}  Rxa1 {[%clk 0:01:42]} 19. Bxa1 {[%clk 0:01:14]}  cxd5 {[%clk 0:01:39]} 20. exd5 {[%clk 0:01:14]}  e4 {[%clk 0:01:08]} 21. Qe3 {[%clk 0:01:12]}  Nxd5 {[%clk 0:01:09]} 22. cxd5 {[%clk 0:00:58]}  Rxc1+ {[%clk 0:01:10]} 23. Qxc1 {[%clk 0:00:59]}  exf3 {[%clk 0:01:10]} 24. Bxf3 {[%clk 0:00:54]}  Bxf3 {[%clk 0:01:10]} 25. gxf3 {[%clk 0:00:55]}  h6 {[%clk 0:00:53]} 26. Qe3 {[%clk 0:00:49]}  Qg5+ {[%clk 0:00:50]} 27. Qxg5 {[%clk 0:00:41]}  hxg5 {[%clk 0:00:50]} 28. Bd4 {[%clk 0:00:41]}  Nf6 {[%clk 0:00:32]} 29. Bxf6 {[%clk 0:00:39]}  gxf6 {[%clk 0:00:33]} 30. f4 {[%clk 0:00:36]}  Kg7 {[%clk 0:00:21]} 31. f5 {[%clk 0:00:32]}  Kf8 {[%clk 0:00:20]} 32. Kg2 {[%clk 0:00:31]}  Ke7 {[%clk 0:00:20]} 33. Kg3 {[%clk 0:00:30]}  Kf8 {[%clk 0:00:14]} 34. Kg4 {[%clk 0:00:24]}  Kg7 {[%clk 0:00:13]} 35. f4 {[%clk 0:00:21]}  Kh6 {[%clk 0:00:10]} 36. fxg5+ {[%clk 0:00:19]}  fxg5 {[%clk 0:00:11]} 37. h4 {[%clk 0:00:20]}  gxh4 {[%clk 0:00:09]} 38. Kxh4 {[%clk 0:00:20]}  f6 {[%clk 0:00:07]} 39. Kg4 {[%clk 0:00:20]}  b5 {[%clk 0:00:06]} 40. Kh4 {[%clk 0:00:21]}  Kg7 {[%clk 0:00:07]} 41. Kh5 {[%clk 0:00:21]}  Kh7 {[%clk 0:00:07]} 42. Kh4 {[%clk 0:00:22]}  Kh6 {[%clk 0:00:08]} 43. Kg4 {[%clk 0:00:22]}  Kg7 {[%clk 0:00:09]} 44. Kh4 {[%clk 0:00:23]}  Kh6 {[%clk 0:00:09]} 45. Kg4 {[%clk 0:00:23]}  Kg7 {[%clk 0:00:10]} 46. Kh4 {[%clk 0:00:24]}  Kh6 {[%clk 0:00:10]} 1/2-1/2


[Site "https://www.chess.com"]

[Event "Titled Tuesday Blitz December 20 Early 2022"]
[White "Shironin, Daniil Aleks"]
[Black "Ruzele, Darius"]
[WhiteFideId "55812198"]
[BlackFideId "12800104"]
[WhiteElo "2115"]
[BlackElo "2531"]
[Result "1/2-1/2"]
[Round "04"]
[TimeControl "180+2"]
[Date "2022.12.20"]
[WhiteClock "0:00:13"]
[BlackClock "0:00:12"]

1. c4 {[%clk 0:03:00]}  e6 {[%clk 0:02:55]} 2. Nc3 {[%clk 0:02:57]}  d5 {[%clk 0:02:55]} 3. d4 {[%clk 0:02:58]}  c5 {[%clk 0:02:54]} 4. cxd5 {[%clk 0:02:57]}  cxd4 {[%clk 0:02:54]} 5. Qxd4 {[%clk 0:02:52]}  Nc6 {[%clk 0:02:54]} 6. Qd1 {[%clk 0:02:45]}  exd5 {[%clk 0:02:54]} 7. e3 {[%clk 0:02:42]}  Nf6 {[%clk 0:02:54]} 8. Nf3 {[%clk 0:02:41]}  Bd6 {[%clk 0:02:54]} 9. Bd3 {[%clk 0:02:39]}  O-O {[%clk 0:02:55]} 10. O-O {[%clk 0:02:39]}  Bg4 {[%clk 0:02:54]} 11. Be2 {[%clk 0:02:34]}  Re8 {[%clk 0:02:51]} 12. b3 {[%clk 0:02:31]}  Qd7 {[%clk 0:02:41]} 13. Bb2 {[%clk 0:02:30]}  Rad8 {[%clk 0:02:41]} 14. Nd4 {[%clk 0:02:22]}  Nxd4 {[%clk 0:02:37]} 15. Qxd4 {[%clk 0:02:13]}  Be5 {[%clk 0:02:20]} 16. Qd2 {[%clk 0:02:10]}  Bxc3 {[%clk 0:02:18]} 17. Bxc3 {[%clk 0:02:03]}  Ne4 {[%clk 0:02:18]} 18. Bxg4 {[%clk 0:01:47]}  Qxg4 {[%clk 0:01:51]} 19. Qd4 {[%clk 0:01:40]}  Nf6 {[%clk 0:01:38]} 20. Qxg4 {[%clk 0:01:35]}  Nxg4 {[%clk 0:01:39]} 21. Rad1 {[%clk 0:01:34]}  Rc8 {[%clk 0:01:24]} 22. Bd4 {[%clk 0:01:32]}  Rc2 {[%clk 0:01:22]} 23. h3 {[%clk 0:01:32]}  Ne5 {[%clk 0:01:19]} 24. Bxe5 {[%clk 0:01:28]}  Rxe5 {[%clk 0:01:19]} 25. Rc1 {[%clk 0:01:29]}  Rc6 {[%clk 0:00:58]} 26. Rfd1 {[%clk 0:01:26]}  Kf8 {[%clk 0:00:54]} 27. Kf1 {[%clk 0:01:25]}  Ke7 {[%clk 0:00:53]} 28. Ke2 {[%clk 0:01:25]}  Kd6 {[%clk 0:00:54]} 29. Kd3 {[%clk 0:01:23]}  f5 {[%clk 0:00:47]} 30. b4 {[%clk 0:01:18]}  a6 {[%clk 0:00:46]} 31. a4 {[%clk 0:01:17]}  Re4 {[%clk 0:00:47]} 32. b5 {[%clk 0:01:16]}  Rxc1 {[%clk 0:00:45]} 33. Rxc1 {[%clk 0:01:15]}  Rxa4 {[%clk 0:00:45]} 34. bxa6 {[%clk 0:01:14]}  Rxa6 {[%clk 0:00:43]} 35. g4 {[%clk 0:01:08]}  Ra2 {[%clk 0:00:40]} 36. f4 {[%clk 0:01:03]}  fxg4 {[%clk 0:00:30]} 37. hxg4 {[%clk 0:01:02]}  h6 {[%clk 0:00:31]} 38. Rb1 {[%clk 0:00:59]}  Kc6 {[%clk 0:00:28]} 39. Rc1+ {[%clk 0:00:59]}  Kd6 {[%clk 0:00:28]} 40. Rb1 {[%clk 0:00:58]}  Kc7 {[%clk 0:00:27]} 41. Kd4 {[%clk 0:00:57]}  Ra3 {[%clk 0:00:25]} 42. g5 {[%clk 0:00:52]}  hxg5 {[%clk 0:00:24]} 43. fxg5 {[%clk 0:00:51]}  Ra4+ {[%clk 0:00:24]} 44. Kxd5 {[%clk 0:00:51]}  Ra5+ {[%clk 0:00:24]} 45. Kd4 {[%clk 0:00:50]}  Rxg5 {[%clk 0:00:25]} 46. e4 {[%clk 0:00:48]}  Rg2 {[%clk 0:00:21]} 47. Rc1+ {[%clk 0:00:46]}  Kd7 {[%clk 0:00:21]} 48. Rb1 {[%clk 0:00:45]}  Kc6 {[%clk 0:00:20]} 49. Rc1+ {[%clk 0:00:45]}  Kd7 {[%clk 0:00:20]} 50. Rb1 {[%clk 0:00:44]}  Kc7 {[%clk 0:00:20]} 51. Rc1+ {[%clk 0:00:44]}  Kb8 {[%clk 0:00:21]} 52. Kd5 {[%clk 0:00:39]}  g5 {[%clk 0:00:17]} 53. e5 {[%clk 0:00:39]}  g4 {[%clk 0:00:18]} 54. e6 {[%clk 0:00:39]}  Rd2+ {[%clk 0:00:18]} 55. Ke5 {[%clk 0:00:36]}  g3 {[%clk 0:00:17]} 56. Kf6 {[%clk 0:00:35]}  g2 {[%clk 0:00:16]} 57. e7 {[%clk 0:00:34]}  Re2 {[%clk 0:00:14]} 58. Kf7 {[%clk 0:00:18]}  Rf2+ {[%clk 0:00:13]} 59. Ke6 {[%clk 0:00:18]}  Re2+ {[%clk 0:00:13]} 60. Kf7 {[%clk 0:00:17]}  Rf2+ {[%clk 0:00:14]} 61. Ke6 {[%clk 0:00:17]}  Re2+ {[%clk 0:00:14]} 62. Kd7 {[%clk 0:00:17]}  Rd2+ {[%clk 0:00:13]} 63. Ke8 {[%clk 0:00:16]}  Ka7 {[%clk 0:00:13]} 64. Rg1 {[%clk 0:00:13]}  Rf2 {[%clk 0:00:11]} 65. Kd7 {[%clk 0:00:13]}  Rd2+ {[%clk 0:00:11]} 66. Ke6 {[%clk 0:00:13]}  Re2+ {[%clk 0:00:11]} 67. Kf7 {[%clk 0:00:13]}  Rf2+ {[%clk 0:00:11]} 68. Ke6 {[%clk 0:00:13]}  Re2+ {[%clk 0:00:12]} 69. Kd7 {[%clk 0:00:13]}  Rd2+ {[%clk 0:00:12]} 70. Ke6 {[%clk 0:00:13]}  Re2+ {[%clk 0:00:12]} 1/2-1/2


[Site "https://www.chess.com"]

[Event "Titled Tuesday Blitz December 20 Early 2022"]
[White "Slovak_fighter2000"]
[Black "FMalexhdez"]
[WhiteElo "2466"]
[BlackElo "2290"]
[Result "1-0"]
[Round "04"]
[TimeControl "180+2"]
[Date "2022.12.20"]
[WhiteClock "0:00:38"]
[BlackClock "0:00:34"]

1. d4 {[%clk 0:03:00]}  Nf6 {[%clk 0:02:52]} 2. Nf3 {[%clk 0:03:00]}  e6 {[%clk 0:02:52]} 3. Bf4 {[%clk 0:02:59]}  d6 {[%clk 0:02:49]} 4. e3 {[%clk 0:02:58]}  b6 {[%clk 0:02:46]} 5. Nbd2 {[%clk 0:02:57]}  Bb7 {[%clk 0:02:47]} 6. Bd3 {[%clk 0:02:56]}  Nbd7 {[%clk 0:02:47]} 7. O-O {[%clk 0:02:52]}  Be7 {[%clk 0:02:43]} 8. h3 {[%clk 0:02:51]}  c5 {[%clk 0:02:42]} 9. c3 {[%clk 0:02:50]}  O-O {[%clk 0:02:42]} 10. Bh2 {[%clk 0:02:49]}  Rc8 {[%clk 0:02:41]} 11. Qe2 {[%clk 0:02:48]}  Re8 {[%clk 0:02:41]} 12. a4 {[%clk 0:02:47]}  a5 {[%clk 0:02:37]} 13. Nc4 {[%clk 0:02:46]}  Nf8 {[%clk 0:02:29]} 14. e4 {[%clk 0:02:33]}  d5 {[%clk 0:02:27]} 15. exd5 {[%clk 0:02:27]}  exd5 {[%clk 0:02:13]} 16. Nce5 {[%clk 0:02:24]}  Ne4 {[%clk 0:02:12]} 17. Bb5 {[%clk 0:02:21]}  Ng6 {[%clk 0:01:58]} 18. Bxe8 {[%clk 0:02:19]}  Qxe8 {[%clk 0:01:58]} 19. Nxg6 {[%clk 0:02:15]}  hxg6 {[%clk 0:01:57]} 20. Rfe1 {[%clk 0:02:12]}  Bf6 {[%clk 0:01:56]} 21. Ne5 {[%clk 0:02:10]}  Qe7 {[%clk 0:01:45]} 22. f3 {[%clk 0:02:05]}  Nd6 {[%clk 0:01:43]} 23. Ng4 {[%clk 0:02:01]}  Qd7 {[%clk 0:01:26]} 24. Bxd6 {[%clk 0:01:36]}  Qxd6 {[%clk 0:01:24]} 25. Nxf6+ {[%clk 0:01:36]}  Qxf6 {[%clk 0:01:22]} 26. Qe5 {[%clk 0:01:33]}  cxd4 {[%clk 0:01:20]} 27. Qxf6 {[%clk 0:00:52]}  gxf6 {[%clk 0:01:19]} 28. cxd4 {[%clk 0:00:52]}  Rc2 {[%clk 0:01:18]} 29. Rab1 {[%clk 0:00:51]}  Bc6 {[%clk 0:01:15]} 30. Rec1 {[%clk 0:00:49]}  Bxa4 {[%clk 0:01:09]} 31. Rxc2 {[%clk 0:00:49]}  Bxc2 {[%clk 0:01:09]} 32. Rc1 {[%clk 0:00:50]}  Bd3 {[%clk 0:01:07]} 33. Kf2 {[%clk 0:00:50]}  a4 {[%clk 0:01:04]} 34. Rc6 {[%clk 0:00:48]}  b5 {[%clk 0:01:03]} 35. Rxf6 {[%clk 0:00:46]}  b4 {[%clk 0:01:01]} 36. Rb6 {[%clk 0:00:42]}  b3 {[%clk 0:00:34]} 37. Rb4 {[%clk 0:00:38]} 1-0


[Site "https://www.chess.com"]

[Event "Titled Tuesday Blitz December 20 Early 2022"]
[White "Sovetov, Oleksandr"]
[Black "Sunny_Star"]
[WhiteFideId "34105786"]
[WhiteElo "1976"]
[BlackElo "2241"]
[Result "1-0"]
[Round "04"]
[TimeControl "180+2"]
[Date "2022.12.20"]
[WhiteClock "0:01:14"]
[BlackClock "0:00:03"]

1. Nf3 {[%clk 0:02:57]}  Nf6 {[%clk 0:02:55]} 2. c4 {[%clk 0:02:58]}  e6 {[%clk 0:02:54]} 3. e3 {[%clk 0:02:57]}  d5 {[%clk 0:02:53]} 4. b3 {[%clk 0:02:57]}  Bd6 {[%clk 0:02:49]} 5. Bb2 {[%clk 0:02:56]}  c6 {[%clk 0:02:49]} 6. Nc3 {[%clk 0:02:54]}  O-O {[%clk 0:02:46]} 7. Qc2 {[%clk 0:02:45]}  Nbd7 {[%clk 0:02:46]} 8. Rg1 {[%clk 0:02:21]}  e5 {[%clk 0:02:22]} 9. cxd5 {[%clk 0:02:19]}  cxd5 {[%clk 0:02:05]} 10. g4 {[%clk 0:02:17]}  e4 {[%clk 0:01:57]} 11. g5 {[%clk 0:02:07]}  Ne8 {[%clk 0:01:19]} 12. Nd4 {[%clk 0:01:44]}  Nc7 {[%clk 0:01:18]} 13. d3 {[%clk 0:01:38]}  exd3 {[%clk 0:00:43]} 14. Bxd3 {[%clk 0:01:38]}  g6 {[%clk 0:00:43]} 15. h4 {[%clk 0:01:33]}  Ne5 {[%clk 0:00:40]} 16. Be2 {[%clk 0:01:32]}  Re8 {[%clk 0:00:13]} 17. h5 {[%clk 0:01:25]}  Nc6 {[%clk 0:00:07]} 18. O-O-O {[%clk 0:01:20]}  Nxd4 {[%clk 0:00:05]} 19. Rxd4 {[%clk 0:01:21]}  Bf5 {[%clk 0:00:05]} 20. Bd3 {[%clk 0:01:15]}  Bxd3 {[%clk 0:00:03]} 21. Qxd3 {[%clk 0:01:16]}  Be5 {[%clk 0:00:03]} 22. hxg6 {[%clk 0:01:14]} 1-0


[Site "https://www.chess.com"]

[Event "Titled Tuesday Blitz December 20 Early 2022"]
[White "Steegersee"]
[Black "Carvalho, Heracles Elieser"]
[BlackFideId "22751114"]
[WhiteElo "2425"]
[BlackElo "1895"]
[Result "0-1"]
[Round "04"]
[TimeControl "180+2"]
[Date "2022.12.20"]
[WhiteClock "0:00:06"]
[BlackClock "0:00:10"]

1. b3 {[%clk 0:03:00]}  e5 {[%clk 0:02:55]} 2. Bb2 {[%clk 0:03:01]}  Nc6 {[%clk 0:02:55]} 3. e3 {[%clk 0:03:01]}  g6 {[%clk 0:02:56]} 4. Bb5 {[%clk 0:03:02]}  Bg7 {[%clk 0:02:56]} 5. Nf3 {[%clk 0:03:02]}  Nge7 {[%clk 0:02:55]} 6. d4 {[%clk 0:03:01]}  d6 {[%clk 0:02:49]} 7. dxe5 {[%clk 0:02:50]}  O-O {[%clk 0:02:48]} 8. O-O {[%clk 0:02:48]}  dxe5 {[%clk 0:02:39]} 9. Qe2 {[%clk 0:02:44]}  e4 {[%clk 0:02:07]} 10. Nd4 {[%clk 0:02:40]}  Nxd4 {[%clk 0:02:04]} 11. exd4 {[%clk 0:02:33]}  Bf5 {[%clk 0:01:53]} 12. Qd2 {[%clk 0:02:25]}  Nd5 {[%clk 0:01:43]} 13. Be2 {[%clk 0:02:16]}  Re8 {[%clk 0:01:37]} 14. c4 {[%clk 0:01:49]}  e3 {[%clk 0:01:37]} 15. fxe3 {[%clk 0:01:46]}  Nxe3 {[%clk 0:01:38]} 16. Re1 {[%clk 0:01:44]}  Qg5 {[%clk 0:01:35]} 17. Bf3 {[%clk 0:01:38]}  Bh6 {[%clk 0:01:33]} 18. Nc3 {[%clk 0:01:34]}  Nc2 {[%clk 0:01:25]} 19. Qxg5 {[%clk 0:01:30]}  Bxg5 {[%clk 0:01:26]} 20. Rxe8+ {[%clk 0:01:30]}  Rxe8 {[%clk 0:01:27]} 21. Rd1 {[%clk 0:01:27]}  Nxd4 {[%clk 0:01:17]} 22. Bxb7 {[%clk 0:01:24]}  c6 {[%clk 0:01:17]} 23. Kh1 {[%clk 0:01:13]}  Re7 {[%clk 0:01:16]} 24. Na4 {[%clk 0:00:50]}  Bg4 {[%clk 0:00:55]} 25. Rb1 {[%clk 0:00:33]}  Nxb3 {[%clk 0:00:45]} 26. axb3 {[%clk 0:00:25]}  Rxb7 {[%clk 0:00:44]} 27. Bd4 {[%clk 0:00:24]}  Rd7 {[%clk 0:00:37]} 28. Bg1 {[%clk 0:00:20]}  Bf6 {[%clk 0:00:34]} 29. Nc5 {[%clk 0:00:18]}  Rd2 {[%clk 0:00:34]} 30. h3 {[%clk 0:00:18]}  Bf5 {[%clk 0:00:35]} 31. Re1 {[%clk 0:00:07]}  Kg7 {[%clk 0:00:35]} 32. Ne4 {[%clk 0:00:07]}  Bxe4 {[%clk 0:00:33]} 33. Rxe4 {[%clk 0:00:08]}  Rd1 {[%clk 0:00:31]} 34. Kh2 {[%clk 0:00:08]}  Rb1 {[%clk 0:00:29]} 35. Bxa7 {[%clk 0:00:08]}  Rxb3 {[%clk 0:00:29]} 36. c5 {[%clk 0:00:09]}  Rd3 {[%clk 0:00:22]} 37. Re8 {[%clk 0:00:08]}  Rd7 {[%clk 0:00:19]} 38. Bb6 {[%clk 0:00:09]}  Re7 {[%clk 0:00:15]} 39. Rc8 {[%clk 0:00:09]}  Re6 {[%clk 0:00:15]} 40. Bc7 {[%clk 0:00:09]}  Bd4 {[%clk 0:00:14]} 41. Bd6 {[%clk 0:00:09]}  Kf6 {[%clk 0:00:14]} 42. Rxc6 {[%clk 0:00:10]}  Be5+ {[%clk 0:00:12]} 43. Bxe5+ {[%clk 0:00:08]}  Kxe5 {[%clk 0:00:13]} 44. Rc7 {[%clk 0:00:08]}  Rf6 {[%clk 0:00:09]} 45. h4 {[%clk 0:00:08]}  Kd5 {[%clk 0:00:09]} 46. Kh3 {[%clk 0:00:06]}  h5 {[%clk 0:00:10]} 47. g3 {[%clk 0:00:06]}  Rf5 {[%clk 0:00:10]} 0-1


[Site "https://www.chess.com"]

[Event "Titled Tuesday Blitz December 20 Early 2022"]
[White "Timofeeva, Galina"]
[Black "Castro Andrade, Seirbert Cristian"]
[WhiteFideId "14106175"]
[BlackFideId "3863336"]
[WhiteElo "1955"]
[BlackElo "1364"]
[Result "1-0"]
[Round "04"]
[TimeControl "180+2"]
[Date "2022.12.20"]
[WhiteClock "0:00:28"]
[BlackClock "0:00:36"]

1. d4 {[%clk 0:03:00]}  Nf6 {[%clk 0:02:59]} 2. Nc3 {[%clk 0:03:00]}  d5 {[%clk 0:02:59]} 3. Bf4 {[%clk 0:03:00]}  c5 {[%clk 0:02:58]} 4. e3 {[%clk 0:03:00]}  cxd4 {[%clk 0:02:57]} 5. exd4 {[%clk 0:03:00]}  a6 {[%clk 0:02:54]} 6. Nf3 {[%clk 0:02:59]}  Bf5 {[%clk 0:02:48]} 7. Ne5 {[%clk 0:02:55]}  Nbd7 {[%clk 0:02:39]} 8. g4 {[%clk 0:02:51]}  Nxe5 {[%clk 0:02:32]} 9. gxf5 {[%clk 0:02:47]}  Nc6 {[%clk 0:02:31]} 10. Qd2 {[%clk 0:02:42]}  Qd7 {[%clk 0:02:27]} 11. Bh3 {[%clk 0:02:24]}  g6 {[%clk 0:02:27]} 12. O-O-O {[%clk 0:02:14]}  gxf5 {[%clk 0:02:26]} 13. Rhe1 {[%clk 0:02:11]}  Bg7 {[%clk 0:01:59]} 14. Be5 {[%clk 0:01:58]}  e6 {[%clk 0:01:57]} 15. Bxf5 {[%clk 0:01:53]}  Nxe5 {[%clk 0:01:57]} 16. dxe5 {[%clk 0:01:52]}  Ng8 {[%clk 0:01:54]} 17. Bd3 {[%clk 0:01:44]}  Ne7 {[%clk 0:01:52]} 18. f4 {[%clk 0:01:44]}  O-O-O {[%clk 0:01:51]} 19. Kb1 {[%clk 0:01:43]}  Kb8 {[%clk 0:01:46]} 20. h4 {[%clk 0:01:42]}  h5 {[%clk 0:01:40]} 21. Rg1 {[%clk 0:01:41]}  Bh6 {[%clk 0:01:40]} 22. Qf2 {[%clk 0:01:40]}  Rdg8 {[%clk 0:01:38]} 23. a3 {[%clk 0:01:38]}  Ng6 {[%clk 0:01:33]} 24. Ne2 {[%clk 0:01:35]}  Qe7 {[%clk 0:01:31]} 25. Rh1 {[%clk 0:01:23]}  Ka8 {[%clk 0:01:27]} 26. Rdf1 {[%clk 0:01:21]}  Qd8 {[%clk 0:01:24]} 27. Rh3 {[%clk 0:01:13]}  Bf8 {[%clk 0:01:23]} 28. Nd4 {[%clk 0:01:04]}  Qb6 {[%clk 0:01:17]} 29. Bxg6 {[%clk 0:00:58]}  Rxg6 {[%clk 0:01:09]} 30. Rb3 {[%clk 0:00:58]}  Qa7 {[%clk 0:01:08]} 31. f5 {[%clk 0:00:56]}  Rg4 {[%clk 0:01:08]} 32. c3 {[%clk 0:00:50]}  Bc5 {[%clk 0:01:03]} 33. fxe6 {[%clk 0:00:50]}  Bxd4 {[%clk 0:01:03]} 34. cxd4 {[%clk 0:00:45]}  fxe6 {[%clk 0:01:02]} 35. Qf6 {[%clk 0:00:44]}  Rb8 {[%clk 0:00:58]} 36. Qxe6 {[%clk 0:00:43]}  Qxd4 {[%clk 0:00:57]} 37. Ka2 {[%clk 0:00:43]}  Rxh4 {[%clk 0:00:53]} 38. Qd6 {[%clk 0:00:34]}  Qc4 {[%clk 0:00:49]} 39. Rf8 {[%clk 0:00:32]}  Rc8 {[%clk 0:00:36]} 40. Qe7 {[%clk 0:00:28]} 1-0


[Site "https://www.chess.com"]

[Event "Titled Tuesday Blitz December 20 Early 2022"]
[White "Toh, Terry"]
[Black "Alexei_Gubajdullin"]
[WhiteFideId "5800323"]
[WhiteElo "2394"]
[BlackElo "2625"]
[Result "1-0"]
[Round "04"]
[TimeControl "180+2"]
[Date "2022.12.20"]
[WhiteClock "0:01:07"]
[BlackClock "0:01:12"]

1. c4 {[%clk 0:03:00]}  Nf6 {[%clk 0:02:59]} 2. Nc3 {[%clk 0:02:59]}  g6 {[%clk 0:02:59]} 3. e4 {[%clk 0:02:59]}  d6 {[%clk 0:02:59]} 4. d4 {[%clk 0:02:59]}  Bg7 {[%clk 0:02:59]} 5. f3 {[%clk 0:02:59]}  O-O {[%clk 0:02:59]} 6. Nge2 {[%clk 0:02:59]}  Na6 {[%clk 0:02:59]} 7. Be3 {[%clk 0:02:59]}  c5 {[%clk 0:02:59]} 8. Qd2 {[%clk 0:02:59]}  cxd4 {[%clk 0:02:53]} 9. Nxd4 {[%clk 0:02:58]}  Nc5 {[%clk 0:02:53]} 10. Be2 {[%clk 0:02:59]}  b6 {[%clk 0:02:52]} 11. O-O {[%clk 0:02:57]}  Bb7 {[%clk 0:02:53]} 12. Rad1 {[%clk 0:02:57]}  Rc8 {[%clk 0:02:52]} 13. Rfe1 {[%clk 0:02:56]}  Re8 {[%clk 0:02:52]} 14. Bf1 {[%clk 0:02:56]}  Qc7 {[%clk 0:02:51]} 15. Rc1 {[%clk 0:02:55]}  Qb8 {[%clk 0:02:51]} 16. b3 {[%clk 0:02:55]}  a6 {[%clk 0:02:50]} 17. Red1 {[%clk 0:02:53]}  e6 {[%clk 0:02:49]} 18. Nde2 {[%clk 0:02:49]}  Red8 {[%clk 0:02:48]} 19. Ng3 {[%clk 0:02:42]}  d5 {[%clk 0:02:47]} 20. cxd5 {[%clk 0:02:36]}  exd5 {[%clk 0:02:46]} 21. Bf4 {[%clk 0:02:35]}  Qa7 {[%clk 0:02:37]} 22. e5 {[%clk 0:02:35]}  Nfd7 {[%clk 0:02:36]} 23. Nxd5 {[%clk 0:02:31]}  Nxe5 {[%clk 0:02:30]} 24. Ne7+ {[%clk 0:02:30]}  Kf8 {[%clk 0:02:31]} 25. Nxc8 {[%clk 0:02:30]}  Rxc8 {[%clk 0:02:28]} 26. Qd6+ {[%clk 0:02:30]}  Kg8 {[%clk 0:02:25]} 27. Bxe5 {[%clk 0:02:30]}  b5 {[%clk 0:02:25]} 28. Rxc5 {[%clk 0:02:20]}  Rxc5 {[%clk 0:02:22]} 29. Qb8+ {[%clk 0:02:12]}  Qxb8 {[%clk 0:02:21]} 30. Bxb8 {[%clk 0:02:13]}  Bf6 {[%clk 0:02:16]} 31. Bf4 {[%clk 0:02:07]}  Rc2 {[%clk 0:02:13]} 32. Bh6 {[%clk 0:02:07]}  Bc8 {[%clk 0:01:47]} 33. Rc1 {[%clk 0:02:02]}  Bd4+ {[%clk 0:01:46]} 34. Kh1 {[%clk 0:02:01]}  Rxc1 {[%clk 0:01:41]} 35. Bxc1 {[%clk 0:02:01]}  f5 {[%clk 0:01:41]} 36. Ne2 {[%clk 0:01:58]}  Be5 {[%clk 0:01:40]} 37. Bd2 {[%clk 0:01:57]}  Kf7 {[%clk 0:01:40]} 38. f4 {[%clk 0:01:57]}  Bf6 {[%clk 0:01:38]} 39. Bc3 {[%clk 0:01:56]}  Be7 {[%clk 0:01:38]} 40. g3 {[%clk 0:01:56]}  b4 {[%clk 0:01:34]} 41. Bd4 {[%clk 0:01:55]}  a5 {[%clk 0:01:34]} 42. Bg2 {[%clk 0:01:55]}  Bd7 {[%clk 0:01:32]} 43. Bd5+ {[%clk 0:01:55]}  Kf8 {[%clk 0:01:32]} 44. Kg2 {[%clk 0:01:54]}  a4 {[%clk 0:01:32]} 45. bxa4 {[%clk 0:01:53]}  Bxa4 {[%clk 0:01:31]} 46. Kf3 {[%clk 0:01:53]}  Bd1 {[%clk 0:01:30]} 47. Ke3 {[%clk 0:01:52]}  Bd6 {[%clk 0:01:30]} 48. Bb3 {[%clk 0:01:52]}  Bxb3 {[%clk 0:01:27]} 49. axb3 {[%clk 0:01:51]}  h6 {[%clk 0:01:27]} 50. Nc1 {[%clk 0:01:51]}  g5 {[%clk 0:01:27]} 51. Nd3 {[%clk 0:01:51]}  Kf7 {[%clk 0:01:27]} 52. Bc5 {[%clk 0:01:50]}  Bc7 {[%clk 0:01:26]} 53. Nxb4 {[%clk 0:01:49]}  Kg6 {[%clk 0:01:25]} 54. Nd5 {[%clk 0:01:47]}  Bb8 {[%clk 0:01:25]} 55. Bd4 {[%clk 0:01:45]}  Kh5 {[%clk 0:01:24]} 56. Kf3 {[%clk 0:01:40]}  Bd6 {[%clk 0:01:22]} 57. h3 {[%clk 0:01:38]}  gxf4 {[%clk 0:01:16]} 58. Nxf4+ {[%clk 0:01:34]}  Kg5 {[%clk 0:01:16]} 59. Bc3 {[%clk 0:01:33]}  h5 {[%clk 0:01:15]} 60. h4+ {[%clk 0:01:32]}  Kh6 {[%clk 0:01:14]} 61. b4 {[%clk 0:01:31]}  Bc7 {[%clk 0:01:11]} 62. b5 {[%clk 0:01:30]}  Bb6 {[%clk 0:01:11]} 63. Nd5 {[%clk 0:01:29]}  Bc5 {[%clk 0:01:11]} 64. b6 {[%clk 0:01:29]}  Bd6 {[%clk 0:01:10]} 65. b7 {[%clk 0:01:29]}  Kg6 {[%clk 0:01:08]} 66. Ba5 {[%clk 0:01:27]}  Bb8 {[%clk 0:01:06]} 67. Bc7 {[%clk 0:01:27]}  Ba7 {[%clk 0:01:07]} 68. b8=Q {[%clk 0:01:25]}  Bxb8 {[%clk 0:01:06]} 69. Bxb8 {[%clk 0:01:26]}  Kf7 {[%clk 0:01:06]} 70. Kf4 {[%clk 0:01:25]}  Ke6 {[%clk 0:01:06]} 71. Ne3 {[%clk 0:01:25]}  Kf6 {[%clk 0:01:06]} 72. Be5+ {[%clk 0:01:24]}  Kg6 {[%clk 0:01:07]} 73. Nxf5 {[%clk 0:01:24]}  Kh7 {[%clk 0:01:05]} 74. Kg5 {[%clk 0:01:23]}  Kg8 {[%clk 0:01:06]} 75. Kxh5 {[%clk 0:01:20]}  Kf7 {[%clk 0:01:06]} 76. Kg5 {[%clk 0:01:21]}  Ke6 {[%clk 0:01:07]} 77. Bf4 {[%clk 0:01:17]}  Kf7 {[%clk 0:01:08]} 78. h5 {[%clk 0:01:16]}  Kg8 {[%clk 0:01:09]} 79. h6 {[%clk 0:01:15]}  Kh7 {[%clk 0:01:10]} 80. g4 {[%clk 0:01:14]}  Kg8 {[%clk 0:01:10]} 81. Kg6 {[%clk 0:01:14]}  Kf8 {[%clk 0:01:10]} 82. h7 {[%clk 0:01:13]}  Ke8 {[%clk 0:01:11]} 83. h8=Q+ {[%clk 0:01:12]}  Kd7 {[%clk 0:01:12]} 84. Qg7+ {[%clk 0:01:11]}  Kc6 {[%clk 0:01:12]} 85. Qd4 {[%clk 0:01:08]}  Kb5 {[%clk 0:01:10]} 86. Qc3 {[%clk 0:01:08]}  Kb6 {[%clk 0:01:10]} 87. Kf6 {[%clk 0:01:07]}  Kb5 {[%clk 0:01:11]} 88. Ke6 {[%clk 0:01:07]}  Kb6 {[%clk 0:01:12]} 89. g5 {[%clk 0:01:07]}  Kb5 {[%clk 0:01:12]} 90. g6 {[%clk 0:01:07]}  Kb6 {[%clk 0:01:12]} 91. g7 {[%clk 0:01:07]}  Kb5 {[%clk 0:01:12]} 92. g8=Q {[%clk 0:01:07]}  Kb6 {[%clk 0:01:13]} 93. Qb8+ {[%clk 0:01:07]}  Ka6 {[%clk 0:01:12]} 94. Qa1# {[%clk 0:01:07]} 1-0


[Site "https://www.chess.com"]